{"text_format":"1","workbook":"xlsx","n_sheets":3,"sheets":["electricity consumption","Leaking Electricity","Sheet3"],"not_rendered":{"charts":0,"images":0,"macros":0,"external_links":0,"defined_names":1,"comments":0,"pivot_tables":0},"unopened":[],"bounds":{"document_bytes":16777216,"sheet_cells":100000,"rows_first":2000,"rows_last":500,"rows_between":2000,"halvings":0,"cell_chars":16384,"cell_head_chars":4096},"cells_cut":0,"cells_raw":0,"read":"whole","date_system":"1900"}

{"sheet":"electricity consumption","index":0,"n_rows":31,"n_cols":13,"rows_kept":31,"cut":false,"hidden":false,"merged":[[5,1,5,7],[5,8,5,12],[0,0,0,12],[2,0,2,9]]}
["Personal Energy Meter"]
[]
["*Energy cost based on total kWh (kilowatt-hours) X cost per kWh. Use default electric cost of $0.15/kWh or enter another value:",null,null,null,null,null,null,null,null,null,null,0.15]
[]
["Column:   A","B","C","D","E","F","G","H","I","J","K","L","M"]
[null,"Energy Tracker (Hours/Day)",null,null,null,null,null,null,"Cost Calculator"]
["Appliance","Day 1","Day 2","Day 3","Day 4","Day 5","Day 6","Day 7","Total Hours","Wattage","Total Wh","Total kWh","Energy Cost*"]
["Television (19\")",1.5,2.5,2,1,2.5,2.5,3,{"$f":"SUM(B8:H8)","v":15},100,null,{"$f":"PRODUCT(I8,J8)/1000","v":1.5},{"$f":"PRODUCT(L3,L8)","v":0.22499999999999998}]
["Space heater",4,3.5,5,6,5.5,4.5,5,{"$f":"SUM(B9:H9)","v":33.5},1500,null,{"$f":"PRODUCT(I9,J9)/1000","v":50.25},{"$f":"PRODUCT(L3,L9)","v":7.5374999999999996}]
["Personal computer",2,1,1.5,0,1,2,2.5,10,200,null,{"$f":"PRODUCT(I10,J10)/1000","v":2},{"$f":"PRODUCT(L3,L10)","v":0.3}]
[null,null,null,null,null,null,null,null,0,null,null,0,{"$f":"PRODUCT(L3,L11)","v":0}]
[null,null,null,null,null,null,null,null,0,null,null,0,{"$f":"PRODUCT(L3,L12)","v":0}]
[null,null,null,null,null,null,null,null,0,null,null,0,{"$f":"PRODUCT(L3,L13)","v":0}]
[null,null,null,null,null,null,null,null,0,null,null,0,{"$f":"PRODUCT(L3,L14)","v":0}]
[null,null,null,null,null,null,null,null,0,null,null,0,{"$f":"PRODUCT(L3,L15)","v":0}]
[null,null,null,null,null,null,null,null,0,null,null,0,{"$f":"PRODUCT(L3,L16)","v":0}]
[null,null,null,null,null,null,null,null,0,null,null,0,{"$f":"PRODUCT(L3,L17)","v":0}]
[null,null,null,null,null,null,null,null,0,null,null,0,{"$f":"PRODUCT(L3,L18)","v":0}]
[null,null,null,null,null,null,null,null,0,null,null,0,{"$f":"PRODUCT(L3,L19)","v":0}]
[null,null,null,null,null,null,null,null,0,null,null,0,{"$f":"PRODUCT(L3,L20)","v":0}]
[null,null,null,null,null,null,null,null,0,null,null,0,{"$f":"PRODUCT(L3,L21)","v":0}]
[null,null,null,null,null,null,null,null,0,null,null,0,{"$f":"PRODUCT(L3,L22)","v":0}]
[null,null,null,null,null,null,null,null,0,null,null,0,{"$f":"PRODUCT(L3,L23)","v":0}]
[null,null,null,null,null,null,null,null,0,null,null,0,{"$f":"PRODUCT(L3,L24)","v":0}]
[null,null,null,null,null,null,null,null,0,null,null,0,{"$f":"PRODUCT(L3,L25)","v":0}]
[null,null,null,null,null,null,null,null,0,null,null,0,{"$f":"PRODUCT(L3,L26)","v":0}]
[null,null,null,null,null,null,null,null,0,null,null,0,{"$f":"PRODUCT(L3,L27)","v":0}]
[null,null,null,null,null,null,null,null,0,null,null,0,{"$f":"PRODUCT(L3,L28)","v":0}]
[null,null,null,null,null,null,null,null,0,null,null,0,{"$f":"PRODUCT(L3,L29)","v":0}]
[null,null,null,null,null,null,null,null,0,null,null,0,{"$f":"PRODUCT(L3,L30)","v":0}]
["Total for Week:",null,null,null,null,null,null,null,null,null,null,{"$f":"SUM(L8:L30)","v":53.75},{"$f":"SUM(M8:M30)","v":8.0625}]

{"sheet":"Leaking Electricity","index":1,"n_rows":32,"n_cols":13,"rows_kept":32,"cut":false,"hidden":false,"merged":[[0,0,0,12],[2,0,2,9],[6,1,6,7],[6,8,6,12],[3,0,3,12]]}
["Personal Energy Meter - Leaking Electricity"]
[]
["*Energy cost based on total kWh (kilowatt-hours) X cost per kWh. Use default electric cost of $0.15/kWh or enter another value:",null,null,null,null,null,null,null,null,null,null,0.15]
["Are your appliances leaking electricity?  Use the Watt Meter or the information provided to determine which appliances in your household are using electricity when in standby mode.  Enter the information in the table below."]
[]
["Column:   A","B","C","D","E","F","G","H","I","J","K","L","M"]
[null,"Energy Tracker (Hours/Day appliance is OFF)",null,null,null,null,null,null,"Cost Calculator"]
["Appliance","Day 1","Day 2","Day 3","Day 4","Day 5","Day 6","Day 7","Total Hours","Leaking Watts","Total Wh Leaked","Total kWh","Energy Cost*"]
["Television (19\")",22.5,20.5,22,23,21.5,21.5,21,{"$f":"SUM(B9:H9)","v":152},4,null,{"$f":"PRODUCT(I9,J9)/1000","v":0.60799999999999998},{"$f":"PRODUCT(L3,L9)","v":9.1199999999999989E-2}]
["Space heater",20,21.5,19,18,18.5,19.5,19,{"$f":"SUM(B10:H10)","v":135.5},5,null,{"$f":"PRODUCT(I10,J10)/1000","v":0.67749999999999999},{"$f":"PRODUCT(L3,L10)","v":0.10162499999999999}]
["Personal computer",22,23,22.5,24,23,22,21.5,158,10,null,{"$f":"PRODUCT(I11,J11)/1000","v":1.58},{"$f":"PRODUCT(L3,L11)","v":0.23699999999999999}]
[null,null,null,null,null,null,null,null,0,null,null,0,{"$f":"PRODUCT(L3,L12)","v":0}]
[null,null,null,null,null,null,null,null,0,null,null,0,{"$f":"PRODUCT(L3,L13)","v":0}]
[null,null,null,null,null,null,null,null,0,null,null,0,{"$f":"PRODUCT(L3,L14)","v":0}]
[null,null,null,null,null,null,null,null,0,null,null,0,{"$f":"PRODUCT(L3,L15)","v":0}]
[null,null,null,null,null,null,null,null,0,null,null,0,{"$f":"PRODUCT(L3,L16)","v":0}]
[null,null,null,null,null,null,null,null,0,null,null,0,{"$f":"PRODUCT(L3,L17)","v":0}]
[null,null,null,null,null,null,null,null,0,null,null,0,{"$f":"PRODUCT(L3,L18)","v":0}]
[null,null,null,null,null,null,null,null,0,null,null,0,{"$f":"PRODUCT(L3,L19)","v":0}]
[null,null,null,null,null,null,null,null,0,null,null,0,{"$f":"PRODUCT(L3,L20)","v":0}]
[null,null,null,null,null,null,null,null,0,null,null,0,{"$f":"PRODUCT(L3,L21)","v":0}]
[null,null,null,null,null,null,null,null,0,null,null,0,{"$f":"PRODUCT(L3,L22)","v":0}]
[null,null,null,null,null,null,null,null,0,null,null,0,{"$f":"PRODUCT(L3,L23)","v":0}]
[null,null,null,null,null,null,null,null,0,null,null,0,{"$f":"PRODUCT(L3,L24)","v":0}]
[null,null,null,null,null,null,null,null,0,null,null,0,{"$f":"PRODUCT(L3,L25)","v":0}]
[null,null,null,null,null,null,null,null,0,null,null,0,{"$f":"PRODUCT(L3,L26)","v":0}]
[null,null,null,null,null,null,null,null,0,null,null,0,{"$f":"PRODUCT(L3,L27)","v":0}]
[null,null,null,null,null,null,null,null,0,null,null,0,{"$f":"PRODUCT(L3,L28)","v":0}]
[null,null,null,null,null,null,null,null,0,null,null,0,{"$f":"PRODUCT(L3,L29)","v":0}]
[null,null,null,null,null,null,null,null,0,null,null,0,{"$f":"PRODUCT(L3,L30)","v":0}]
[null,null,null,null,null,null,null,null,0,null,null,0,{"$f":"PRODUCT(L3,L31)","v":0}]
["Total for Week:",null,null,null,null,null,null,null,null,null,null,{"$f":"SUM(L9:L31)","v":2.8654999999999999},{"$f":"SUM(M9:M31)","v":0.42982499999999996}]

{"sheet":"Sheet3","index":2,"n_rows":0,"n_cols":0,"rows_kept":0,"cut":false,"hidden":false,"merged":[]}